fUST/lending_fUST_20240812
["ID","MTS","AMOUNT","RATE_DAILY","PERIOD"]
[334676565,1723463455945,-501.2973495,0.0002129,2]
[334676566,1723463455954,-1676.41179153,0.000213,2]
[334676567,1723463455965,-961.81211323,0.000213,2]
[334676568,1723463456726,-419.09842325,0.00020821,3]
[334676569,1723463456738,-80.90157675,0.00020821,3]
[334676570,1723463456747,-361.77609524,0.000213,2]
[334676571,1723463456756,-936.24908057,0.0002131,2]
[334676572,1723463456840,-1000.0,0.0002131,2]
[334676580,1723463736375,246.122189,0.00015045,2]
[334676581,1723463798537,166.57208,0.00014247,2]
[334676582,1723463844567,676.27235227,0.00015045,2]
[334676625,1723463950732,158.6240802,0.00015022,2]
[334676626,1723464090929,24900.0,0.00015092,2]
[334676627,1723464268987,166.223918,0.00014247,2]
[334676628,1723464303159,246.1221898,0.00015087,2]
[334676630,1723464441684,913.41210079,0.00015087,2]
[334676631,1723464443784,189.82749556,0.00015087,2]
[334676632,1723464552114,-254.9786404,0.00015616,2]
[334676633,1723464552135,-250.0,0.00015716,2]
[334676634,1723464552156,-250.0,0.00015759,2]
[334676635,1723464552176,-250.0,0.00015802,2]
[334676636,1723464552196,-250.0,0.00015845,2]
[334676637,1723464552216,-250.0,0.00015888,2]
[334676638,1723464552239,-154.75,0.000159,2]
[334676639,1723464552260,-250.0,0.00015931,2]
[334676640,1723464552283,-104.6763536,0.00015975,2]
[334676641,1723464564117,-21122.37572171,0.00015822,2]
[334676642,1723464573182,-3777.62427829,0.00015822,2]
[334676643,1723464573204,-13636.02465774,0.00015954,2]
[334676644,1723464573228,-145.3236464,0.00015975,2]
[334676645,1723464573255,-250.0,0.00016018,2]
[334676646,1723464573277,-300.0,0.00016037,2]
[334676647,1723464573299,-300.0,0.00016037,2]
[334676648,1723464573322,-250.0,0.00016061,2]
[334676649,1723464573347,-659.60969318,0.00016061,2]
[334676650,1723464573376,-250.0,0.00016104,2]
[334676651,1723464573398,-250.0,0.00016147,2]
[334676652,1723464573420,-250.0,0.0001619,2]
[334676653,1723464573441,-250.0,0.00016233,2]
[334676654,1723464573464,-250.0,0.00016276,2]
[334676655,1723464573487,-250.0,0.00016319,2]
[334676656,1723464573509,-493.23151943,0.00016347,2]
[334676657,1723464573532,-239.7257217,0.00016347,2]
[334676658,1723464573555,-250.0,0.00016362,2]
[334676659,1723464573577,-250.0,0.00016405,2]
[334676660,1723464573604,-153.0,0.00016438,2]
[334676661,1723464573626,-153.0,0.00016438,2]
[334676662,1723464573648,-153.0,0.00016438,2]
[334676663,1723464573669,-153.0,0.00016438,2]
[334676664,1723464573692,-153.0,0.00016438,2]
[334676665,1723464573714,-153.0,0.00016438,2]
[334676666,1723464573737,-153.0,0.00016438,2]
[334676667,1723464573760,-153.0,0.00016438,2]
[334676668,1723464573784,-153.0,0.00016438,2]
[334676669,1723464573806,-153.0,0.00016438,2]
[334676670,1723464573828,-153.0,0.00016438,2]
[334676671,1723464573854,-153.0,0.00016438,2]
[334676672,1723464573875,-153.0,0.00016438,2]
[334676673,1723464573898,-153.0,0.00016438,2]
[334676674,1723464573920,-153.0,0.00016438,2]
[334676675,1723464573942,-153.0,0.00016438,2]
[334676676,1723464573967,-250.0,0.00016449,2]
[334676677,1723464573991,-250.0,0.00016492,2]
[334676678,1723464574013,-155.04029343,0.00016532,2]
[334676679,1723464574034,-269.65614473,0.00016532,7]
[334676680,1723464574056,-381.83317968,0.00016532,2]
[334676681,1723464574079,-250.0,0.00016535,2]
[334676682,1723464574104,-500.0,0.00016592,2]
[334676683,1723464574126,-500.0,0.00016592,2]
[334676684,1723464574149,-500.0,0.00016592,2]
[334676685,1723464574171,-211.97269357,0.00016592,2]
[334676686,1723464574192,-500.0,0.00016592,2]
[334676687,1723464574214,-6203.47258284,0.00016593,2]
[334676688,1723464574237,-370.072531,0.00017019,2]
[334676689,1723464574260,-636.65531725,0.00017389,2]
[334676690,1723464574283,-283.36106058,0.00017533,2]
[334676691,1723464612920,4596.65125774,0.000161,4]
[334676745,1723464632677,-153.0,0.00016438,2]
[334676747,1723464632687,-153.0,0.00016438,2]
[334676749,1723464632700,-153.0,0.00016438,2]
[334676751,1723464632710,-153.0,0.00016438,2]
[334676753,1723464632719,-153.0,0.00016438,2]
[334676755,1723464632731,-309.48934258,0.00017403,2]
[334676758,1723464632742,-154.76012181,0.00018125,2]
[334676760,1723464632752,-154.76012181,0.00018125,2]
[334676761,1723464632762,-154.76012181,0.00018287,2]
[334676763,1723464632772,-154.76012181,0.00018287,2]
[334676765,1723464632781,-2999.17098831,0.00018596,2]
[334676766,1723464632791,-227.51233494,0.00018695,2]
[334676768,1723464632801,-500.0,0.00018695,2]
[334676770,1723464632810,-500.0,0.00018695,2]
[334676772,1723464632820,-300.0,0.00018695,2]
[334676773,1723464632830,-99919.2871723,0.00018696,2]
[334676798,1723464638807,-500.0,0.00018695,2]
[334676799,1723464638817,-500.0,0.00018695,2]
[334676800,1723464638841,-500.0,0.00018695,2]
[334676801,1723464638851,-500.0,0.00018695,2]
[334676802,1723464638860,-500.0,0.00018695,2]
[334676803,1723464638869,-435.21808904,0.00018695,2]
[334676804,1723464638879,-245.77474373,0.00018695,2]
[334676805,1723464638888,-6481.09208838,0.00018696,2]
[334676806,1723464638898,-151.0,0.00018696,2]
[334676807,1723464638907,-1164.38729917,0.00018821,2]
[334676808,1723464638917,-1164.38729915,0.00018835,2]
[334676809,1723464638926,-1164.38729915,0.0001885,2]
[334676810,1723464638936,-1164.38729915,0.00018864,2]
[334676811,1723464638945,-1164.38729915,0.00018878,2]
[334676812,1723464638954,-308.938012,0.00018904,2]
[334676813,1723464638963,-16544.44461869,0.00018959,2]
[334676814,1723464638973,-54248.5444898,0.00018959,2]
[334676815,1723464638983,-54248.5444898,0.00018978,2]
[334676816,1723464638992,-42383.12825852,0.00018979,2]
[334676817,1723464639002,-522.80309354,0.00018999,2]
[334676818,1723464639012,-250.0,0.00019041,2]
[334676819,1723464639022,-301.29579535,0.00019046,2]
[334676820,1723464639031,-9652.40516915,0.00019139,2]
[334676821,1723464639042,-9652.40516915,0.00019139,2]
[334676822,1723464639052,-54248.5444898,0.00019167,2]
[334676823,1723464639063,-277.46411292,0.00019167,2]
[334676824,1723464639072,-6064.37956195,0.00019167,2]
[334676825,1723464639082,-1269.69498838,0.00019177,2]
[334676826,1723464639092,-5240.178669,0.00019177,2]
[334676827,1723464639101,-161.959314,0.00019178,2]
[334676828,1723464639110,-1810.26620909,0.00019256,3]
[334676829,1723464639119,-176.489683,0.00019333,2]
[334676830,1723464639128,-173.713303,0.00019333,2]
[334676831,1723464639146,-35044.64616853,0.00019451,2]
[334676833,1723464639155,-1612.28857669,0.00019451,2]
[334676834,1723464639164,-463.64893982,0.00019451,2]
[334676835,1723464639173,-2140.71420812,0.00019451,2]
[334676836,1723464639182,-472.25848256,0.00019451,2]
[334676837,1723464639192,-160.72812802,0.00019477,2]
[334676838,1723464639201,-805.53,0.000195,2]
[334676839,1723464639210,-108497.08898,0.00019537,2]
[334676840,1723464639220,-568.97584151,0.00019547,2]
[334676841,1723464639229,-209.19959389,0.00019547,2]
[334676842,1723464639239,-817.03180288,0.00019547,4]
[334676843,1723464639248,-154.76012181,0.00019547,2]
[334676844,1723464639261,-173.713303,0.00019655,2]
[334676845,1723464639270,-151.90208824,0.0001978,2]
[334676846,1723464639279,-5000.0,0.00019842,2]
[334676847,1723464639289,-173.713303,0.00019977,2]
[334676848,1723464639298,-240.81957697,0.00019999,2]
[334676849,1723464639307,-157.9723884,0.00019999,2]
[334676850,1723464639316,-309.48934258,0.00019999,2]
[334676851,1723464639326,-2295.12425473,0.0002,14]
[334676852,1723464639335,-1384.32767636,0.0002,2]
[334676853,1723464639346,-336.53868747,0.0002,2]
[334676854,1723464639355,-188.20114955,0.0002,2]
[334676855,1723464639364,-154.91670417,0.0002,2]
[334676856,1723464639373,-155.05360391,0.0002,2]
[334676857,1723464639383,-435.0,0.0002,2]
[334676858,1723464639392,-154.76012181,0.0002028,2]
[334676859,1723464639402,-173.713303,0.000203,2]
[334676860,1723464639412,-1413.0,0.00020366,2]
[334676861,1723464639422,-248.98557296,0.00020547,7]
[334676862,1723464639432,-150.0,0.00020682,2]
[334676863,1723464639443,-508.0,0.00020682,2]
[334676864,1723464639453,-54248.5444898,0.00020711,2]
[334676865,1723464639462,-1817.63941278,0.00020721,2]
[334676866,1723464639471,-26985.52398916,0.00020721,3]
[334676867,1723464639482,-150.112236,0.000208,3]
[334676868,1723464639491,-151.0,0.00020811,2]
[334676869,1723464639500,-500.0,0.00020821,3]
[334676870,1723464639510,-1003.16,0.00020821,3]
[334676871,1723464639519,-500.0,0.00020821,3]
[334676872,1723464639528,-500.0,0.00020821,3]
[334676873,1723464639537,-500.0,0.00020821,3]
[334676874,1723464639546,-500.0,0.00020821,3]
[334676875,1723464639555,-500.0,0.00020821,3]
[334676876,1723464639565,-500.0,0.00020821,3]
[334676877,1723464639574,-500.0,0.00020821,3]
[334676878,1723464639584,-500.0,0.00020821,3]
[334676879,1723464639593,-1274.91,0.00020821,3]
[334676880,1723464639602,-500.0,0.00020821,2]
[334676881,1723464639612,-500.0,0.00020821,3]
[334676882,1723464639622,-500.0,0.00020821,3]
[334676883,1723464639631,-502.21590744,0.00020821,3]
[334676884,1723464639651,-500.0,0.00020821,3]
[334676885,1723464639660,-500.0,0.00020821,3]
[334676886,1723464639669,-500.0,0.00020821,3]
[334676887,1723464639678,-500.0,0.00020821,3]
[334676888,1723464639687,-500.0,0.00020821,3]
[334676889,1723464639696,-500.0,0.00020821,3]
[334676890,1723464639705,-500.0,0.00020821,3]
[334676891,1723464639714,-500.0,0.00020821,3]
[334676892,1723464639724,-500.0,0.00020821,3]
[334676893,1723464639734,-500.0,0.00020821,3]
[334676894,1723464639743,-500.0,0.00020821,3]
[334676895,1723464639754,-500.0,0.00020821,3]
[334676896,1723464639764,-500.0,0.00020821,3]
[334676897,1723464639774,-500.0,0.00020821,3]
[334676898,1723464639783,-500.0,0.00020821,3]
[334676899,1723464639793,-500.0,0.00020821,3]
[334676900,1723464639803,-500.0,0.00020821,3]
[334676901,1723464639814,-500.0,0.00020821,3]
[334676902,1723464639823,-500.0,0.00020821,3]
[334676903,1723464639832,-500.0,0.00020821,3]
[334676904,1723464639842,-500.0,0.00020821,2]
[334676905,1723464639851,-500.0,0.00020821,3]
[334676906,1723464639861,-320.60555966,0.00020821,3]
[334676931,1723464640714,-288.02845211,0.00019451,2]
[334676932,1723464640724,-521.9411547,0.00019477,2]
[334676933,1723464640737,-411.05412527,0.00019477,2]
[334676934,1723464640747,-179.39444034,0.00020821,3]
[334676935,1723464640756,-629.27268015,0.00020821,3]
[334676936,1723464640766,-500.0,0.00020821,3]
[334676937,1723464640776,-500.0,0.00020821,3]
[334676938,1723464640785,-500.0,0.00020821,3]
[334676939,1723464640794,-500.0,0.00020821,3]
[334676940,1723464640804,-500.0,0.00020821,3]
[334676941,1723464640813,-874.8,0.00020821,3]
[334676942,1723464640822,-501.49390567,0.00020821,3]
[334676943,1723464640831,-500.0,0.00020821,3]
[334676944,1723464640841,-325.65215929,0.00020821,3]
[334676945,1723464640850,-500.0,0.00020821,3]
[334676946,1723464640858,-682.5,0.00020821,3]
[334676947,1723464640868,-953.76,0.00020821,3]
[334676948,1723464640877,-527.41057258,0.00020821,3]
[334676949,1723464640886,-500.0,0.00020821,3]
[334676950,1723464640895,-500.0,0.00020821,3]
[334676951,1723464640905,-499.99855932,0.00020821,3]
[334676952,1723464640914,-500.0,0.00020821,3]
[334676953,1723464640923,-500.0,0.00020821,3]
[334676954,1723464640933,-500.0,0.00020821,3]
[334676955,1723464640943,-500.0,0.00020821,3]
[334676956,1723464640952,-500.0,0.00020821,3]
[334676957,1723464640961,-1262.51,0.00020821,3]
[334676958,1723464640971,-500.0,0.00020821,3]
[334676959,1723464640980,-386.42793739,0.00020821,3]
[334676960,1723464640989,-500.0,0.00020821,3]
[334676961,1723464640999,-500.0,0.00020821,3]
[334676962,1723464641008,-566.67,0.00020821,3]
[334676963,1723464641018,-500.0,0.00020821,3]
[334676964,1723464641027,-500.0,0.00020821,3]
[334676965,1723464641037,-528.41,0.00020821,3]
[334676966,1723464641046,-638.51270259,0.00020821,3]
[334676967,1723464641055,-500.0,0.00020821,3]
[334676968,1723464641065,-500.0,0.00020821,3]
[334676969,1723464641074,-526.55,0.00020821,3]
[334676970,1723464641083,-500.0,0.00020821,3]
[334676971,1723464641092,-637.91,0.00020821,3]
[334676972,1723464641102,-500.0,0.00020821,3]
[334676973,1723464641111,-500.0,0.00020821,3]
[334676974,1723464641121,-500.0,0.00020821,3]
[334676975,1723464641130,-500.0,0.00020821,3]
[334676976,1723464641140,-500.0,0.00020821,3]
[334676977,1723464641148,-500.0,0.00020821,3]
[334676978,1723464641157,-500.0,0.00020821,3]
[334676979,1723464641166,-983.82,0.00020821,3]
[334676980,1723464641175,-514.44900278,0.00020821,3]
[334676981,1723464641184,-603.47,0.00020821,3]
[334676982,1723464641193,-500.0,0.00020821,3]
[334676983,1723464641202,-500.0,0.00020821,3]
[334676984,1723464641211,-577.60026551,0.00020821,3]
[334676985,1723464641221,-200.0,0.00020821,3]
[334676986,1723464641230,-500.0,0.00020821,3]
[334676987,1723464641240,-514.68,0.00020821,3]
[334676988,1723464641249,-500.0,0.00020821,3]
[334676989,1723464641262,-500.0,0.00020821,3]
[334676990,1723464641272,-435.90130151,0.00020821,3]
[334676991,1723464641282,-500.0,0.00020821,3]
[334676992,1723464641291,-542.12372726,0.00020821,3]
[334676993,1723464641300,-670.16,0.00020821,3]
[334676994,1723464641310,-518.31538582,0.00020821,3]
[334676995,1723464641319,-500.0,0.00020821,3]
[334676996,1723464641329,-500.0,0.00020821,3]
[334676997,1723464641338,-811.45,0.00020821,3]
[334676998,1723464641348,-500.0,0.00020821,3]
[334676999,1723464641358,-500.0,0.00020821,3]
[334677000,1723464641367,-500.0,0.00020821,3]
[334677001,1723464641377,-500.0,0.00020821,3]
[334677002,1723464641388,-573.85377433,0.00020821,3]
[334677003,1723464641398,-500.0,0.00020821,3]
[334677004,1723464641407,-983.38,0.00020821,3]
[334677005,1723464641416,-500.0,0.00020821,3]
[334677006,1723464641426,-500.0,0.00020821,3]
[334677007,1723464641436,-500.0,0.00020821,3]
[334677008,1723464641445,-500.0,0.00020821,3]
[334677009,1723464641455,-984.4,0.00020821,3]
[334677010,1723464641465,-500.0,0.00020821,3]
[334677011,1723464641474,-500.0,0.00020821,3]
[334677012,1723464641483,-500.0,0.00020821,3]
[334677013,1723464641493,-500.0,0.00020821,3]
[334677014,1723464641503,-500.0,0.00020821,3]
[334677015,1723464641512,-919.36,0.00020821,3]
[334677016,1723464641522,-869.81,0.00020821,3]
[334677017,1723464641532,-500.0,0.00020821,3]
[334677018,1723464641541,-550.24824527,0.00020821,3]
[334677019,1723464641551,-1104.45,0.00020821,3]
[334677020,1723464641561,-806.0,0.00020821,3]
[334677021,1723464641571,-500.0,0.00020821,3]
[334677022,1723464641580,-500.0,0.00020821,3]
[334677023,1723464641590,-504.68650453,0.00020821,3]
[334677024,1723464641599,-500.0,0.00020821,3]
[334677025,1723464641608,-500.0,0.00020821,3]
[334677026,1723464641618,-500.0,0.00020821,3]
[334677027,1723464641628,-500.0,0.00020821,3]
[334677028,1723464641638,-506.92878003,0.00020821,3]
[334677029,1723464641646,-500.0,0.00020821,3]
[334677030,1723464641656,-500.0,0.00020821,3]
[334677031,1723464641665,-500.0,0.00020821,3]
[334677032,1723464641675,-500.0,0.00020821,3]
[334677033,1723464641684,-527.4319581,0.00020821,3]
[334677034,1723464641694,-500.0,0.00020821,3]
[334677035,1723464641702,-500.0,0.00020821,3]
[334677036,1723464641712,-504.74492696,0.00020821,3]
[334677037,1723464641721,-698.68,0.00020821,3]
[334677038,1723464641730,-500.0,0.00020821,3]
[334677039,1723464641739,-506.88527368,0.00020821,3]
[334677040,1723464641749,-500.0,0.00020821,3]
[334677041,1723464641758,-506.82338046,0.00020821,3]
[334677042,1723464641767,-503.10663543,0.00020821,3]
[334677043,1723464641776,-503.82654771,0.00020821,3]
[334677044,1723464641786,-500.0,0.00020821,3]
[334677045,1723464641795,-503.23853271,0.00020821,3]
[334677046,1723464641805,-500.0,0.00020821,3]
[334677047,1723464641814,-500.0,0.00020821,3]
[334677048,1723464641824,-500.0,0.00020821,3]
[334677049,1723464641834,-505.58590369,0.00020821,3]
[334677050,1723464641843,-500.0,0.00020821,3]
[334677051,1723464641852,-620.67,0.00020821,3]
[334677052,1723464641862,-500.0,0.00020821,3]
[334677053,1723464641871,-500.0,0.00020821,3]
[334677054,1723464641880,-1942.52,0.00020821,3]
[334677055,1723464641891,-500.0,0.00020821,3]
[334677056,1723464641900,-500.0,0.00020821,3]
[334677057,1723464641909,-578.32,0.00020821,3]
[334677058,1723464641919,-500.0,0.00020821,3]
[334677059,1723464641928,-500.0,0.00020821,3]
[334677060,1723464641937,-500.0,0.00020821,3]
[334677061,1723464641946,-500.0,0.00020821,3]
[334677062,1723464641955,-1486.65,0.00020821,3]
[334677063,1723464641965,-737.74,0.00020821,3]
[334677064,1723464641974,-502.05,0.00020821,3]
[334677065,1723464641984,-1218.18,0.00020821,3]
[334677066,1723464641993,-151.0383811,0.00020821,3]
[334677067,1723464642002,-908.63,0.00020821,3]
[334677068,1723464642011,-633.81,0.00020821,3]
[334677069,1723464642024,-527.34,0.00020821,3]
[334677070,1723464642036,-225.25171686,0.00020821,3]
[334677071,1723464642170,-509.94940981,0.00020821,3]
[334677072,1723464642181,-744.34,0.00020821,3]
[334677073,1723464642191,-582.01,0.00020821,3]
[334677074,1723464642200,-500.0,0.00020821,3]
[334677075,1723464642210,-1305.42,0.00020821,3]
[334677076,1723464642219,-500.0,0.00020821,3]
[334677077,1723464642229,-282.70644405,0.00020821,3]
[334677078,1723464642238,-500.0,0.00020821,3]
[334677079,1723464642248,-559.11,0.00020821,3]
[334677080,1723464642261,-500.0,0.00020821,3]
[334677081,1723464642271,-500.0,0.00020821,3]
[334677082,1723464642280,-500.0,0.00020821,3]
[334677083,1723464642291,-532.98,0.00020821,3]
[334677084,1723464642301,-500.0,0.00020821,3]
[334677085,1723464642310,-1210.07,0.00020821,3]
[334677086,1723464642320,-725.66,0.00020821,3]
[334677087,1723464642332,-523.20088517,0.00020821,3]
[334677088,1723464642346,-528.49685715,0.00020821,3]
[334677089,1723464642357,-509.51777587,0.00020821,3]
[334677090,1723464642367,-500.0,0.00020821,3]
[334677091,1723464642376,-500.0,0.00020821,3]
[334677092,1723464642385,-505.37416633,0.00020821,3]
[334677093,1723464642395,-500.0,0.00020821,3]
[334677094,1723464642404,-500.0,0.00020821,3]
[334677095,1723464642414,-650.04,0.00020821,3]
[334677096,1723464642424,-500.0,0.00020821,3]
[334677097,1723464642433,-760.7,0.00020821,3]
[334677098,1723464642443,-505.39917846,0.00020821,3]
[334677099,1723464642453,-1480.07,0.00020821,3]
[334677100,1723464642463,-505.06170648,0.00020821,3]
[334677101,1723464642472,-973.04,0.00020821,3]
[334677102,1723464642482,-521.14,0.00020821,3]
[334677103,1723464642493,-500.0,0.00020821,3]
[334677104,1723464642503,-500.0,0.00020821,3]
[334677105,1723464642513,-500.0,0.00020821,3]
[334677106,1723464642522,-500.0,0.00020821,3]
[334677107,1723464642532,-509.21040246,0.00020821,3]
[334677108,1723464642542,-500.0,0.00020821,3]
[334677109,1723464642552,-500.0,0.00020821,3]
[334677110,1723464642561,-501.14172296,0.00020821,3]
[334677111,1723464642571,-500.0,0.00020821,3]
[334677112,1723464642581,-1044.55,0.00020821,3]
[334677113,1723464642590,-500.0,0.00020821,3]
[334677114,1723464642600,-500.0,0.00020821,3]
[334677115,1723464642610,-500.0,0.00020821,3]
[334677116,1723464642620,-726.46,0.00020821,3]
[334677117,1723464642630,-500.0,0.00020821,3]
[334677118,1723464642644,-500.0,0.00020821,3]
[334677119,1723464642657,-151.0,0.00020821,2]
[334677120,1723464642666,-151.0,0.00020821,2]
[334677121,1723464642675,-506.51584812,0.00020821,3]
[334677122,1723464642684,-507.77632743,0.00020821,3]
[334677123,1723464642694,-2245.29,0.00020821,3]
[334677124,1723464642703,-502.30956681,0.00020821,3]
[334677125,1723464642711,-1297.16,0.00020821,3]
[334677126,1723464642721,-3607.93,0.00020821,3]
[334677127,1723464642732,-500.43605839,0.00020821,3]
[334677128,1723464642742,-965.7,0.00020821,3]
[334677129,1723464642753,-500.0,0.00020821,2]
[334677130,1723464642762,-500.0,0.00020821,3]
[334677131,1723464642772,-512.50635264,0.00020821,3]
[334677132,1723464642781,-500.0,0.00020821,3]
[334677133,1723464642791,-500.0,0.00020821,3]
[334677134,1723464642800,-500.0,0.00020821,3]
[334677135,1723464642809,-500.0,0.00020821,3]
[334677136,1723464642818,-509.72787759,0.00020821,3]
[334677137,1723464642827,-513.37383625,0.00020821,3]
[334677138,1723464642836,-500.0,0.00020821,3]
[334677139,1723464642846,-506.98815353,0.00020821,3]
[334677140,1723464642855,-500.0,0.00020821,3]
[334677141,1723464642865,-500.0,0.00020821,3]
[334677142,1723464642874,-505.0683132,0.00020821,3]
[334677143,1723464642884,-500.0,0.00020821,3]
[334677144,1723464642893,-1415.57,0.00020821,3]
[334677145,1723464642902,-500.0,0.00020821,3]
[334677146,1723464642913,-918.2,0.00020821,3]
[334677147,1723464642922,-500.0,0.00020821,3]
[334677148,1723464642932,-1223.43,0.00020821,3]
[334677149,1723464642942,-500.0,0.00020821,3]
[334677150,1723464642952,-500.0,0.00020821,3]
[334677151,1723464642962,-500.0,0.00020821,3]
[334677152,1723464642971,-1358.73,0.00020821,3]
[334677153,1723464642981,-1936.39,0.00020821,3]
[334677154,1723464642991,-500.0,0.00020821,3]
[334677155,1723464643000,-698.22,0.00020821,3]
[334677156,1723464643009,-1939.82393963,0.00020821,3]
[334677245,1723464820950,165.582438,0.00014247,2]
[334677249,1723464891932,1507.6909685,0.00014247,2]
[334677254,1723464976217,155.6,0.00027,120]
[334677260,1723465313328,167.055274,0.00014247,2]
[334677262,1723465453914,453.33067443,0.00014247,2]
[334677265,1723465609792,9000.0,0.00025,60]
[334677266,1723465627121,-593.25345905,0.00016337,2]
[334677267,1723465627144,-253.36474018,0.00016337,2]
[334677268,1723465627166,-153.0,0.00016438,2]
[334677269,1723465627194,-153.0,0.00016438,2]
[334677270,1723465627216,-153.0,0.00016438,2]
[334677271,1723465627237,-311.56463282,0.00016532,2]
[334677272,1723465627258,-155.18968878,0.00017019,2]
[334677273,1723465627279,-300.0,0.00017166,2]
[334677274,1723465627300,-180.23414793,0.00017166,2]
[334677275,1723465627321,-524.84184709,0.00017166,2]
[334677276,1723465627343,-24900.0,0.00017167,2]
[334677277,1723465627365,-250.0,0.00017634,2]
[334677278,1723465627403,-250.0,0.00017682,2]
[334677279,1723465627436,-250.0,0.0001773,2]
[334677280,1723465627480,-250.0,0.00017779,2]
[334677281,1723465627513,-250.0,0.00017827,2]
[334677282,1723465627544,-250.0,0.00017876,2]
[334677283,1723465627577,-250.0,0.00017924,2]
[334677284,1723465627612,-250.0,0.00017972,2]
[334677285,1723465627643,-1000.0,0.00018,18]
[334677286,1723465627679,-250.0,0.00018021,2]
[334677287,1723465627713,-250.0,0.00018069,2]
[334677288,1723465627741,-250.0,0.00018117,2]
[334677289,1723465627770,-250.0,0.00018166,2]
[334677290,1723465627800,-250.0,0.00018214,2]
[334677291,1723465627833,-250.0,0.00018262,2]
[334677292,1723465627863,-250.0,0.00018311,2]
[334677293,1723465627889,-250.0,0.00018359,2]
[334677294,1723465627919,-250.0,0.00018407,2]
[334677295,1723465627957,-250.0,0.00018456,2]
[334677296,1723465627988,-250.0,0.00018504,2]
[334677297,1723465628017,-250.0,0.00018553,2]
[334677298,1723465628042,-926.35397024,0.00018701,2]
[334677299,1723465628067,-277.46411292,0.0001872,2]
[334677300,1723465628098,-420.0,0.00018883,2]
[334677301,1723465628125,-272.47742117,0.000189,2]
[334677302,1723465628153,-293.491111,0.00018904,2]
[334677303,1723465628180,-1804.47504061,0.00018969,2]
[334677304,1723465628212,-1496.69393573,0.00018969,2]
[334677305,1723465628238,-999.97034271,0.00018978,2]
[334677306,1723465628264,-9078.68310516,0.00018979,2]
[334677307,1723465628291,-241.05,0.00018989,3]
[334677308,1723465628318,-723.15,0.00018989,3]
[334677309,1723465628344,-48515.42601178,0.00018989,2]
[334677310,1723465628500,-859.96565181,0.00018989,2]
[334677311,1723465634100,-57024.98759709,0.00018989,2]
[334677312,1723465634122,-636.65531725,0.00018999,2]
[334677313,1723465634144,-154.9230676,0.00018999,2]
[334677314,1723465634166,-10000.0,0.00019,19]
[334677315,1723465634188,-272.47742116,0.00019025,2]
[334677316,1723465634213,-250.0,0.00019041,2]
[334677317,1723465634234,-222.83730098,0.00019046,2]
[334677318,1723465634255,-208.59918416,0.00019046,2]
[334677319,1723465634276,-272.47742116,0.0001915,2]
[334677320,1723465634298,-300.94723501,0.00019153,2]
[334677321,1723465634319,-1050.50638159,0.00019177,2]
[334677323,1723465644141,-41332.62187693,0.00019177,2]
[334677324,1723465644164,-272.47742116,0.00019275,2]
[334677325,1723465644185,-272.47742116,0.000194,2]
[334677326,1723465644208,-159.25863446,0.0001945,2]
[334677327,1723465644230,-500.0,0.0001945,2]
[334677328,1723465644252,-500.0,0.0001945,2]
[334677329,1723465644274,-500.0,0.0001945,2]
[334677330,1723465644295,-500.0,0.0001945,2]
[334677331,1723465644316,-610.84239028,0.0001945,2]
[334677332,1723465644337,-500.0,0.0001945,2]
[334677333,1723465644504,-500.0,0.0001945,2]